bitfinex/quotes_BTCUSD_20241022
["timestamp","ask_amount","ask_price","bid_price","bid_amount"]
[1729601674776,0.00165,67046.0,67045.0,0.3695]
[1729601677920,0.00165,67046.0,67045.0,0.518653]
[1729601678143,0.00165,67046.0,67045.0,0.3695]
[1729601678994,0.00165,67046.0,67045.0,0.66761215]
[1729601679439,0.150801,67046.0,67045.0,0.3695]
[1729601679657,0.00165,67046.0,67045.0,0.3695]
[1729601680998,0.00165,67046.0,67045.0,0.370325]
[1729601682295,0.00165,67046.0,67045.0,0.367425]
[1729601683202,0.150801,67046.0,67045.0,0.367425]
[1729601683415,0.00165,67046.0,67045.0,0.367425]
[1729601687359,0.150801,67046.0,67045.0,0.367425]
[1729601687795,0.22995237,67046.0,67045.0,0.367425]
[1729601688022,0.150801,67046.0,67045.0,0.367425]
[1729601688863,0.150801,67046.0,67045.0,0.357325]
[1729601689078,0.152801,67046.0,67045.0,0.343325]
[1729601689325,0.153801,67046.0,67045.0,0.343325]
[1729601692174,0.153801,67046.0,67045.0,0.000825]
[1729601696032,0.00465,67046.0,67045.0,0.000825]
[1729601697938,0.153801,67046.0,67045.0,0.000825]
[1729601699984,0.00465,67046.0,67045.0,0.000825]
[1729601700817,0.00265,67046.0,67045.0,0.000825]
[1729601701039,0.00265,67046.0,67045.0,0.40834466]
[1729601701259,0.00265,67046.0,67045.0,0.72438524]
[1729601701473,0.00165,67046.0,67045.0,0.72438524]
[1729601701685,0.00165,67046.0,67045.0,0.72738524]
[1729601702097,0.00165,67046.0,67045.0,0.73138524]
[1729601702518,0.00165,67046.0,67045.0,0.72638524]
[1729601702740,0.00165,67046.0,67045.0,0.75438524]
[1729601702950,0.00165,67046.0,67045.0,0.76538524]
[1729601703210,0.00165,67046.0,67045.0,0.81192574]
[1729601703643,0.00165,67046.0,67045.0,0.76538524]
[1729601703846,0.00165,67046.0,67045.0,0.76138524]
[1729601704070,0.00265,67046.0,67045.0,1.36791636]
[1729601704297,0.00265,67046.0,67045.0,1.37791636]
[1729601704544,0.00165,67046.0,67045.0,1.35191636]
[1729601704765,0.00165,67046.0,67045.0,1.30038524]
[1729601705024,0.00265,67046.0,67045.0,1.33338524]
[1729601705227,0.00265,67046.0,67045.0,1.38490616]
[1729601705430,0.00165,67046.0,67045.0,0.81590616]
[1729601705649,0.00165,67046.0,67045.0,0.49113715]
[1729601705904,0.00265,67046.0,67045.0,0.50013715]
[1729601706112,0.00265,67046.0,67045.0,0.62354466]
[1729601707643,0.00265,67046.0,67045.0,0.51413715]
[1729601707858,0.00265,67046.0,67045.0,0.6630963]
[1729601713443,0.00265,67046.0,67045.0,0.51413715]
[1729601718862,0.00165,67054.0,67048.0,0.298292]
[1729601719071,0.00165,67054.0,67051.0,0.149139]
[1729601719292,0.00165,67054.0,67052.0,0.14895915]
[1729601720011,0.00265,67054.0,67052.0,0.14895915]
[1729601720519,0.00165,67054.0,67053.0,0.06093912]
[1729601720756,0.00165,67054.0,67053.0,0.35903327]
[1729601721013,0.00165,67054.0,67053.0,0.53243327]
[1729601721237,0.00165,67054.0,67053.0,0.55543327]
[1729601721478,0.00265,67054.0,67053.0,0.55543327]
[1729601721939,0.00265,67054.0,67053.0,0.56443327]
[1729601722167,0.00265,67054.0,67053.0,0.55543327]
[1729601722656,0.00265,67054.0,67053.0,0.56943327]
[1729601723332,0.00165,67054.0,67053.0,0.56943327]
[1729601723547,0.00165,67054.0,67053.0,0.58243327]
[1729601733752,0.00165,67054.0,67053.0,0.32509415]
[1729601735873,0.00165,67054.0,67053.0,0.34809415]
[1729601736095,0.00165,67054.0,67053.0,0.44199415]
[1729601742003,0.00165,67054.0,67053.0,0.48853662]
[1729601742907,0.149108,67066.0,67060.0,0.149118]
[1729601743161,0.149108,67066.0,67063.0,0.00223669]
[1729601743398,0.149106,67067.0,67064.0,0.14895915]
[1729601743612,0.298204,67068.0,67064.0,0.14883445]
[1729601743826,0.149105,67067.0,67064.0,0.14883445]
[1729601744258,0.001648,67069.0,67066.0,0.2237587]
[1729601744505,0.001648,67069.0,67067.0,0.25836666]
[1729601744743,0.001648,67069.0,67067.0,0.14895915]
[1729601745379,0.001648,67069.0,67067.0,0.29806215]
[1729601745595,0.001648,67069.0,67067.0,0.14895915]
[1729601746077,0.001648,67069.0,67067.0,0.14995915]
[1729601746293,0.001648,67069.0,67067.0,0.14895915]
[1729601746740,0.001648,67069.0,67067.0,0.15295915]
[1729601748499,0.150749,67069.0,67067.0,0.15295915]
[1729601748731,0.150749,67069.0,67067.0,0.15195915]
[1729601748960,0.150749,67069.0,67067.0,0.15595915]
[1729601749175,0.001648,67069.0,67067.0,0.30506215]
[1729601749389,0.001648,67069.0,67067.0,0.15595915]
[1729601749617,0.001648,67069.0,67067.0,0.15295915]
[1729601749833,0.001648,67069.0,67067.0,0.15895915]
[1729601750060,0.150748,67069.0,67067.0,0.15895915]
[1729601750273,0.001648,67069.0,67067.0,0.30806215]
[1729601750485,0.001648,67069.0,67067.0,0.15895915]
[1729601750973,0.150748,67069.0,67067.0,0.15895915]
[1729601751184,0.001648,67069.0,67067.0,0.15895915]
[1729601752550,0.001648,67069.0,67068.0,0.149102]
[1729601752779,0.001648,67069.0,67068.0,0.14895915]
[1729601754111,0.001648,67069.0,67068.0,0.15395915]
[1729601754803,0.001648,67069.0,67068.0,0.15695915]
[1729601755892,0.150748,67069.0,67068.0,0.15695915]
[1729601756370,0.001648,67069.0,67068.0,0.15695915]
[1729601756851,0.001648,67069.0,67068.0,0.30606115]
[1729601757997,0.001648,67069.0,67068.0,0.4190887]
[1729601758254,0.001648,67069.0,67068.0,0.5922887]
[1729601758952,0.001648,67069.0,67068.0,0.6308285]
[1729601759194,0.001648,67069.0,67068.0,0.6448285]
[1729601759410,0.001648,67069.0,67068.0,0.6658285]
[1729601759630,0.001648,67069.0,67068.0,0.6192887]
[1729601759860,0.001648,67069.0,67068.0,0.6312887]
[1729601760536,0.001648,67069.0,67068.0,0.6192887]
[1729601761184,0.001648,67069.0,67068.0,0.66581761]
[1729601761453,0.001648,67069.0,67068.0,0.65381761]
[1729601761656,0.001648,67069.0,67068.0,1.35381761]
[1729601761880,0.001648,67069.0,67068.0,1.38281761]
[1729601762107,0.001648,67069.0,67068.0,1.3222887]
[1729601762545,0.001648,67069.0,67068.0,1.4828055]
[1729601762768,0.001648,67069.0,67068.0,1.4968055]
[1729601763910,0.001648,67069.0,67068.0,1.4918055]
[1729601764133,0.001648,67069.0,67068.0,1.4968055]
[1729601764377,0.001648,67069.0,67068.0,1.4502887]
[1729601765074,0.001648,67069.0,67068.0,1.4967722]
[1729601765536,0.001648,67069.0,67068.0,1.4987722]
[1729601766256,0.00169,67084.0,67083.0,0.015]
[1729601766659,0.00169,67084.0,67083.0,0.76969966]
[1729601766662,0.00169,67084.0,67083.0,0.65525477]
[1729601766888,0.00169,67084.0,67083.0,0.60382815]
[1729601767115,0.00169,67084.0,67083.0,0.50842815]
[1729601767341,0.00169,67084.0,67083.0,0.50342815]
[1729601767571,0.00169,67084.0,67083.0,0.72161928]
[1729601767843,0.00169,67084.0,67083.0,0.72661928]
[1729601768071,0.00169,67084.0,67083.0,0.74061928]
[1729601768519,0.00169,67084.0,67083.0,0.72661928]
[1729601768976,0.298088,67095.0,67084.0,0.023]
[1729601769209,0.149057,67088.0,67085.0,0.14895915]
[1729601769459,0.149054,67090.0,67085.0,0.29802215]
[1729601769692,0.10940751,67095.0,67085.0,0.14895915]
[1729601769915,0.298111,67089.0,67085.0,0.14895915]
[1729601770151,0.149055,67089.0,67085.0,0.14895915]
[1729601770388,7.555e-05,67090.0,67085.0,0.14895915]
[1729601770620,0.2981,67092.0,67086.0,0.14898645]
[1729601770621,0.149051,67091.0,67086.0,0.14898645]
[1729601770846,0.149051,67091.0,67087.0,0.14895915]
[1729601771084,0.10940751,67095.0,67087.0,0.14895915]
[1729601771085,0.149047,67093.0,67088.0,0.149056]
[1729601771306,0.298091,67094.0,67088.0,0.149056]
[1729601771307,0.006,67090.0,67089.0,0.14895915]
[1729601771534,0.00582053,67090.0,67089.0,0.29801415]
[1729601771805,0.00582053,67090.0,67089.0,0.39783478]
[1729601772494,0.00582053,67090.0,67089.0,0.25577978]
[1729601772722,0.00582053,67090.0,67089.0,0.40483478]
[1729601773863,0.00664653,67090.0,67089.0,0.41383478]
[1729601774393,0.00664653,67090.0,67089.0,0.31401415]
[1729601777227,0.00664653,67090.0,67089.0,0.73367285]
[1729601777463,0.00664653,67090.0,67089.0,0.51491415]
[1729601778353,0.00664653,67090.0,67089.0,0.50791415]
[1729601778620,0.00664653,67090.0,67089.0,0.51991415]
[1729601778850,0.00664653,67090.0,67089.0,0.6688733]
[1729601779071,0.00664653,67090.0,67089.0,0.6598733]
[1729601779532,0.00664653,67090.0,67089.0,0.6738733]
[1729601781164,0.00664653,67090.0,67089.0,0.6618733]
[1729601781399,0.00664653,67090.0,67089.0,0.89528081]
[1729601781623,0.00664653,67090.0,67089.0,0.7858733]
[1729601781848,0.00664653,67090.0,67089.0,0.7718733]
[1729601782330,0.00664653,67090.0,67089.0,0.88128081]
[1729601782572,0.00664653,67090.0,67089.0,0.7858733]
[1729601782799,0.00664653,67090.0,67089.0,0.89528081]
[1729601783022,0.00664653,67090.0,67089.0,0.8158733]
[1729601785397,0.00664653,67090.0,67089.0,0.8175233]
[1729601785616,0.00664653,67090.0,67089.0,0.92693081]
[1729601785849,0.00664653,67090.0,67089.0,0.97325963]
[1729601786784,0.00664653,67090.0,67089.0,0.95925963]
[1729601787526,0.00664653,67090.0,67089.0,0.97325963]
[1729601790829,0.00169,67100.0,67099.0,0.46054051]
[1729601791085,0.00169,67100.0,67099.0,1.34511599]
[1729601792228,0.00169,67100.0,67099.0,1.36135122]
[1729601792483,0.00169,67100.0,67099.0,1.37535122]
[1729601795252,0.00169,67100.0,67099.0,1.38535122]
[1729601796989,0.00169,67100.0,67099.0,1.43171855]
[1729601797453,0.00169,67100.0,67099.0,1.38535122]
[1729601797678,0.00169,67100.0,67099.0,1.43172277]
[1729601798604,0.00169,67100.0,67099.0,1.38535122]
[1729601798829,0.00169,67100.0,67099.0,1.27594371]
[1729601799046,0.00169,67100.0,67099.0,1.43172923]
[1729601799284,0.00169,67100.0,67099.0,1.43172903]
[1729601799513,0.00169,67100.0,67099.0,1.38535122]
[1729601799744,0.00169,67100.0,67099.0,1.4317414]
[1729601800219,0.00169,67100.0,67099.0,1.01122738]
[1729601800667,0.00169,67100.0,67099.0,1.12063489]
[1729601801116,0.00169,67100.0,67099.0,1.10663489]
[1729601802327,0.00169,67100.0,67099.0,1.12063489]
[1729601804425,0.00169,67100.0,67099.0,1.12563489]
[1729601804666,0.00169,67100.0,67099.0,1.27459404]
[1729601804887,0.00169,67100.0,67099.0,1.32101215]
[1729601805104,0.00169,67100.0,67099.0,1.41451215]
[1729601805615,0.00169,67100.0,67099.0,1.52451215]
[1729601805840,0.00169,67100.0,67099.0,1.52651215]
[1729601806287,0.00169,67100.0,67099.0,1.52451215]
[1729601807020,0.001688,67114.0,67112.0,0.149002]
[1729601807257,0.001688,67114.0,67113.0,0.14895915]
[1729601807510,0.150688,67114.0,67113.0,0.14895915]
[1729601807741,0.001688,67114.0,67113.0,0.14895915]
[1729601807988,0.001688,67114.0,67113.0,0.29796115]
[1729601808198,0.001688,67114.0,67113.0,0.14895915]
[1729601808425,0.001688,67114.0,67113.0,0.15119417]
[1729601808642,0.001688,67114.0,67113.0,0.15319417]
[1729601808866,0.001688,67114.0,67113.0,0.30219617]
[1729601809113,0.001688,67114.0,67113.0,0.15319417]
[1729601809832,0.001688,67114.0,67113.0,0.2288105]
[1729601810043,0.001688,67114.0,67113.0,0.15419417]
[1729601810280,0.001688,67114.0,67113.0,0.15195915]
[1729601810802,0.150688,67114.0,67113.0,0.15195915]
[1729601811493,0.26009551,67114.0,67113.0,0.003]
[1729601813604,0.26009551,67114.0,67113.0,0.00523492]
[1729601814770,0.26009551,67114.0,67113.0,0.003]
[1729601815908,0.3491458,67114.0,67113.0,0.003]
[1729601818144,0.34914217,67114.0,67113.0,0.003]
[1729601818590,0.23973466,67114.0,67113.0,0.003]
[1729601819059,0.225888,67114.0,67113.0,0.003]
[1729601819359,0.23973302,67114.0,67113.0,0.003]
[1729601819455,0.225888,67114.0,67113.0,0.003]
[1729601819678,0.23973223,67114.0,67113.0,0.003]
[1729601820657,0.225888,67114.0,67113.0,0.003]
[1729601820874,0.23973201,67114.0,67113.0,0.003]
[1729601821323,0.34913952,67114.0,67113.0,0.003]
[1729601821998,0.34913852,67114.0,67113.0,0.003]
[1729601822901,0.44733852,67114.0,67113.0,0.003]
[1729601823157,0.49157659,67114.0,67113.0,0.003]
[1729601823594,0.44733852,67114.0,67113.0,0.003]
[1729601824036,0.49160737,67114.0,67113.0,0.003]
[1729601824481,0.47776436,67114.0,67113.0,0.003]
[1729601824698,0.49160452,67114.0,67113.0,0.003]
[1729601827200,0.49161914,67114.0,67113.0,0.003]
[1729601829251,0.44733567,67114.0,67113.0,0.003]
[1729601829467,0.49161914,67114.0,67113.0,0.003]
[1729601830811,4.81583886,67114.0,67113.0,0.003]
[1729601831062,5.00143422,67114.0,67113.0,0.003]
[1729601831299,4.74948174,67114.0,67113.0,0.003]
[1729601831525,5.00152295,67114.0,67113.0,0.003]
[1729601831756,5.00152295,67114.0,67113.0,0.002]
[1729601831757,4.89080878,67114.0,67113.0,0.002]
[1729601831996,4.91295171,67114.0,67113.0,0.002]
[1729601832228,4.7504786,67114.0,67113.0,0.003]
[1729601832447,4.7504786,67114.0,67113.0,0.001]
[1729601832879,4.7514786,67114.0,67113.0,0.002]
[1729601833101,4.91493,67114.0,67113.0,0.002]
[1729601833323,4.90043775,67114.0,67113.0,0.002]
[1729601833606,5.00341052,67114.0,67113.0,0.002]
[1729601835285,5.00336514,67114.0,67113.0,0.002]
[1729601836666,5.29895514,67114.0,67113.0,0.002]
[1729601837106,5.21041266,67114.0,67113.0,0.002]
[1729601837329,5.29894372,67114.0,67113.0,0.002]
[1729601837558,5.04698952,67114.0,67113.0,0.002]
[1729601837798,5.29891713,67114.0,67113.0,0.002]
[1729601838017,5.29891492,67114.0,67113.0,0.002]
[1729601838252,5.47075052,67114.0,67113.0,0.002]
[1729601838486,0.343213,67108.0,67107.0,0.02332642]
[1729601838815,5.43699545,67108.0,67107.0,0.02332642]
[1729601839260,0.432422,67104.0,67103.0,0.2237587]
[1729601839489,5.30295729,67104.0,67103.0,0.2237587]
[1729601839714,0.149029,67101.0,67100.0,0.00165]
[1729601839942,4.91421632,67101.0,67100.0,0.00165]
[1729601840190,4.93635976,67101.0,67100.0,0.00165]
[1729601840436,4.98755914,67101.0,67100.0,0.00165]
[1729601840670,4.84786616,67101.0,67100.0,0.00165]
[1729601840889,4.89208692,67101.0,67100.0,0.00165]
[1729601841114,4.84786616,67101.0,67100.0,0.00165]
[1729601841784,4.84786616,67101.0,67100.0,0.00265]
[1729601841785,4.90108692,67101.0,67100.0,0.00265]
[1729601842242,5.05004607,67101.0,67100.0,0.00265]
[1729601842440,5.01382531,67101.0,67100.0,0.00365]
[1729601843403,4.86486616,67101.0,67100.0,0.00365]
[1729601845740,3.50227616,67101.0,67100.0,0.00365]
[1729601846647,3.50224565,67101.0,67100.0,0.00365]
[1729601846876,3.48843651,67101.0,67100.0,0.00365]
[1729601847109,3.50224564,67101.0,67100.0,0.00365]
[1729601847333,3.65120479,67101.0,67100.0,0.00365]
[1729601848951,3.50851982,67101.0,67100.0,0.00365]
[1729601850329,3.49471069,67101.0,67100.0,0.00365]
[1729601850562,4.87110743,67101.0,67100.0,0.00365]
[1729601854404,5.41307409,67101.0,67100.0,0.00365]
[1729601854641,0.331251,67091.0,67089.0,0.00165]
[1729601854881,4.92064774,67091.0,67089.0,0.00165]
[1729601855111,4.92564774,67091.0,67089.0,0.00165]
[1729601855608,5.03505525,67091.0,67089.0,0.00165]
[1729601855858,4.35946525,67091.0,67089.0,0.00165]
[1729601856090,4.36846525,67091.0,67090.0,0.00265]
[1729601856315,4.35946525,67091.0,67090.0,0.00165]
[1729601856553,4.43280807,67091.0,67090.0,0.00165]
[1729601856774,4.44280807,67091.0,67090.0,0.00265]
[1729601857423,4.45380807,67091.0,67090.0,0.00365]
[1729601857696,4.45379871,67091.0,67090.0,0.00365]
[1729601857889,4.45379868,67091.0,67090.0,0.00365]
[1729601858337,4.35479868,67091.0,67090.0,0.00365]
[1729601859266,4.35679868,67091.0,67090.0,0.00365]
[1729601859738,4.35479868,67091.0,67090.0,0.00365]
[1729601861299,4.34100133,67091.0,67090.0,0.00365]
[1729601861541,4.35480229,67091.0,67090.0,0.00365]
[1729601862227,4.36480229,67091.0,67090.0,0.00365]
[1729601862463,4.36680229,67091.0,67090.0,0.00365]
[1729601863208,4.71877099,67091.0,67090.0,0.00365]
[1729601863427,4.60936348,67091.0,67090.0,0.00365]
[1729601864965,4.60736463,67091.0,67090.0,0.00365]
[1729601865169,4.629452,67091.0,67090.0,0.00365]
[1729601865391,4.631452,67091.0,67090.0,0.00365]
[1729601866003,4.626452,67091.0,67090.0,0.00365]
[1729601867251,4.69262634,67091.0,67090.0,0.00365]
[1729601867450,4.626452,67091.0,67090.0,0.00365]
[1729601867855,4.69257613,67091.0,67090.0,0.00365]
[1729601868055,4.626452,67091.0,67090.0,0.00365]
[1729601868454,4.59056252,67091.0,67090.0,0.00365]
[1729601868657,4.62645248,67091.0,67090.0,0.00365]
[1729601868948,4.69257123,67091.0,67090.0,0.00365]
[1729601869165,0.017,67086.0,67085.0,0.00639898]
[1729601869385,5.38462617,67086.0,67085.0,0.00639898]
[1729601869602,5.38462617,67086.0,67079.0,0.2237587]
[1729601869603,0.154075,67080.0,67079.0,0.2237587]
[1729601869818,4.96228376,67080.0,67079.0,0.2237587]
[1729601870244,4.96228376,67080.0,67067.0,0.1732]
[1729601870245,0.149095,67071.0,67067.0,0.1732]
[1729601870501,0.25850251,67071.0,67067.0,0.1732]
[1729601870719,4.83409251,67071.0,67067.0,0.1732]
[1729601870954,0.149102,67068.0,67067.0,0.1732]
[1729601871144,0.25850951,67068.0,67067.0,0.1732]
[1729601872739,0.25850951,67068.0,67061.0,0.149117]
[1729601872740,0.149106,67066.0,67065.0,0.00223669]
[1729601872964,0.25851351,67066.0,67065.0,0.00223669]
[1729601874947,0.25951351,67066.0,67065.0,0.00223669]
[1729601875590,0.26051351,67066.0,67065.0,0.00223669]
[1729601875808,0.25951351,67066.0,67065.0,0.00223669]
[1729601876248,0.25851351,67066.0,67065.0,0.00223669]
[1729601877395,0.34400566,67066.0,67065.0,0.00223669]
[1729601877616,0.34400566,67066.0,67065.0,0.00042969]
[1729601878277,0.25851351,67066.0,67065.0,0.00042969]
[1729601878496,0.149109,67065.0,67062.0,0.0792]
[1729601878717,0.149109,67065.0,67058.0,0.0947]
[1729601878936,0.149109,67065.0,67059.0,0.2237587]
[1729601880713,0.150109,67065.0,67059.0,0.2237587]
[1729601882511,0.149109,67065.0,67059.0,0.2237587]
[1729601882742,0.25851651,67065.0,67059.0,0.2237587]
[1729601882988,0.26751651,67065.0,67059.0,0.2237587]
[1729601884067,0.38423036,67065.0,67059.0,0.2237587]
[1729601884798,0.38423036,67065.0,67059.0,0.24710045]
[1729601885675,4.95982036,67065.0,67059.0,0.02334175]
[1729601886142,4.95982036,67065.0,67058.0,0.00223692]
[1729601886596,4.97363022,67065.0,67054.0,0.0955]
[1729601886821,4.96963022,67065.0,67054.0,0.0955]
[1729601887043,4.97663022,67065.0,67054.0,0.0955]
[1729601887516,4.98463022,67065.0,67054.0,0.0955]
[1729601888908,4.96963022,67065.0,67054.0,0.0955]
[1729601889127,4.97763022,67065.0,67054.0,0.0955]
[1729601889354,4.97282036,67065.0,67054.0,0.0955]
[1729601889593,4.98661902,67065.0,67054.0,0.0955]
[1729601890748,4.98661902,67065.0,67055.0,0.02334363]
[1729601891455,4.99661902,67065.0,67055.0,0.02334363]
[1729601891666,4.99661902,67065.0,67054.0,0.0955]
[1729601891907,4.99661902,67065.0,67058.0,0.02334377]
[1729601892150,4.99826902,67065.0,67058.0,0.02334377]
[1729601893289,3.50827151,67065.0,67058.0,0.02334377]
[1729601893538,2.02755766,67065.0,67058.0,0.02334377]
[1729601895623,2.13696517,67065.0,67058.0,0.02334377]
[1729601896877,2.15906374,67065.0,67058.0,0.02334377]
[1729601897096,2.13696517,67065.0,67058.0,0.02334377]
[1729601897552,2.28592432,67065.0,67058.0,0.02334377]
[1729601898209,2.28592432,67065.0,67064.0,0.000952]
[1729601898424,2.13696517,67065.0,67064.0,0.000952]
[1729601900018,2.15907717,67065.0,67064.0,0.000952]
[1729601900475,2.15910353,67065.0,67064.0,0.000952]
[1729601901662,2.16110353,67065.0,67064.0,0.000952]
[1729601901885,2.30806268,67065.0,67064.0,0.000952]
[1729601902132,2.30806268,67065.0,67046.0,0.001652]
[1729601902133,0.164129,67056.0,67055.0,0.2237587]
[1729601902377,0.164129,67056.0,67046.0,0.001652]
[1729601902378,0.149149,67047.0,67046.0,0.001652]
[1729601904898,0.15895915,67056.0,67047.0,0.0772]
[1729601904899,0.298271,67053.0,67047.0,0.0772]
[1729601905152,0.11440751,67060.0,67049.0,0.0772]
[1729601905388,0.29827,67054.0,67050.0,0.0943]
[1729601905607,0.149138,67052.0,67050.0,0.0943]
[1729601906045,0.14914,67051.0,67050.0,0.0943]
[1729601906924,0.30027,67054.0,67050.0,0.0943]
[1729601907142,0.149136,67053.0,67052.0,0.093]
[1729601909331,0.154136,67053.0,67052.0,0.093]
[1729601909774,0.158136,67053.0,67052.0,0.093]
[1729601911134,0.23147882,67053.0,67052.0,0.093]
[1729601912900,0.158136,67053.0,67052.0,0.093]
[1729601913767,0.158136,67053.0,67047.0,0.02334542]
[1729601913768,0.149146,67048.0,67047.0,0.11684542]
[1729601914214,0.25855351,67048.0,67047.0,0.11684542]
[1729601915398,0.25855351,67048.0,67047.0,0.0935]
[1729601915624,0.149149,67047.0,67046.0,0.001652]
[1729601918965,0.16297253,67047.0,67046.0,0.001652]
[1729601919676,0.149149,67047.0,67046.0,0.001652]
[1729601919893,0.16297123,67047.0,67046.0,0.001652]
[1729601920125,0.149149,67047.0,67046.0,0.001652]
[1729601920383,0.26891021,67047.0,67046.0,0.001652]
[1729601920863,0.2827318,67047.0,67046.0,0.001652]
[1729601921051,0.26891021,67047.0,67046.0,0.001652]
[1729601922146,0.2827314,67047.0,67046.0,0.001652]
[1729601922356,0.26891021,67047.0,67046.0,0.001652]
[1729601923841,5.23590772,67047.0,67046.0,0.001652]
[1729601924064,5.56183548,67047.0,67046.0,0.001652]
[1729601924278,0.266153,67045.0,67042.0,0.000825]
[1729601924492,5.27707827,67045.0,67042.0,0.000825]
[1729601925650,0.012,67041.0,67032.0,0.000844]
[1729601925869,0.49379502,67033.0,67032.0,0.000844]
[1729601926086,5.39731278,67033.0,67032.0,0.000844]
[1729601926296,5.34969846,67033.0,67032.0,0.000844]
[1729601926520,5.34955225,67033.0,67032.0,0.000844]
[1729601926969,5.44415225,67033.0,67032.0,0.000844]
[1729601927192,5.56069301,67033.0,67032.0,0.000844]
[1729601927405,5.54669301,67033.0,67032.0,0.000844]
[1729601927623,5.6569331,67033.0,67032.0,0.000844]
[1729601928057,5.54669301,67033.0,67032.0,0.000844]
[1729601928519,5.56041631,67033.0,67032.0,0.000844]
[1729601928753,5.68459396,67033.0,67032.0,0.000844]
[1729601928972,5.68459381,67033.0,67032.0,0.000844]
[1729601929210,5.67059381,67033.0,67032.0,0.000844]
[1729601929421,5.68459381,67033.0,67032.0,0.000844]
[1729601929640,5.64851795,67033.0,67032.0,0.000844]
[1729601929854,5.66251795,67033.0,67032.0,0.000844]
[1729601930078,5.66251798,67033.0,67032.0,0.000844]
[1729601930289,5.57441616,67033.0,67032.0,0.000844]
[1729601930555,5.662483,67033.0,67032.0,0.000844]
[1729601930977,5.57441616,67033.0,67032.0,0.000844]
[1729601931605,5.66245381,67033.0,67032.0,0.000844]
[1729601932458,5.57441616,67033.0,67032.0,0.000844]
[1729601932667,5.57241616,67033.0,67032.0,0.000844]
[1729601932875,5.578252,67033.0,67032.0,0.000844]
[1729601933531,5.48180042,67033.0,67032.0,0.000844]
[1729601933764,5.48380042,67033.0,67032.0,0.000844]
[1729601934670,5.46179393,67033.0,67032.0,0.000844]
[1729601934889,5.41781588,67033.0,67032.0,0.000844]
[1729601935495,5.46178197,67033.0,67032.0,0.000844]
[1729601935972,0.1542,67024.0,67023.0,0.2237587]
[1729601936187,4.9009907,67024.0,67023.0,0.2237587]
[1729601936621,0.154202,67023.0,67022.0,0.02420125]
[1729601936833,3.163202,67023.0,67022.0,0.02420125]
[1729601937061,3.26574276,67023.0,67022.0,0.02420125]
[1729601937691,1.068202,67023.0,67022.0,0.02420125]
[1729601938355,0.700202,67023.0,67022.0,0.000844]
[1729601938575,0.712202,67023.0,67022.0,0.000844]
[1729601939008,0.723202,67023.0,67022.0,0.000844]
[1729601939437,0.172202,67023.0,67022.0,0.080244]
[1729601940204,0.160202,67023.0,67022.0,0.080244]
[1729601940410,0.28436117,67023.0,67022.0,0.080244]
[1729601940831,0.28636117,67023.0,67022.0,0.080244]
[1729601941318,0.27336117,67023.0,67022.0,0.080244]
[1729601941577,0.27636117,67023.0,67022.0,0.080244]
[1729601942345,0.27536117,67023.0,67022.0,0.080244]
[1729601942775,0.27636117,67023.0,67022.0,0.080244]
[1729601943015,0.152202,67023.0,67022.0,0.080244]
[1729601944256,0.152202,67023.0,67022.0,0.32220315]
[1729601944257,0.00282053,67023.0,67022.0,0.32220315]
[1729601944502,0.15202253,67023.0,67022.0,0.173244]
[1729601945196,0.149202,67023.0,67022.0,0.173244]
[1729601945435,0.150202,67023.0,67022.0,0.173244]
[1729601945902,0.001,67023.0,67022.0,0.173244]
[1729601946190,0.002,67023.0,67022.0,0.173244]
[1729601946904,0.150202,67023.0,67022.0,0.173244]
[1729601947146,0.152202,67023.0,67022.0,0.173244]
[1729601947461,0.151202,67023.0,67022.0,0.173244]
[1729601947702,0.149202,67023.0,67022.0,0.173244]
[1729601947926,0.150202,67023.0,67022.0,0.174244]
[1729601948627,0.151202,67023.0,67022.0,0.174244]
[1729601948881,0.002,67023.0,67022.0,0.174244]
[1729601949717,0.151202,67023.0,67022.0,0.174244]
[1729601950146,0.002,67023.0,67022.0,0.174244]
[1729601951059,0.002,67023.0,67022.0,0.64360785]
[1729601951279,0.002,67023.0,67022.0,0.32320315]
[1729601953470,0.151202,67023.0,67022.0,0.32320315]
[1729601955289,0.151202,67023.0,67022.0,0.174244]
[1729601956217,0.2558395,67023.0,67022.0,0.174244]
[1729601956831,0.4270402,67023.0,67022.0,0.001844]
[1729601957050,0.4260402,67023.0,67022.0,0.000844]
[1729601957536,0.4260402,67023.0,67022.0,0.001844]
[1729601957760,0.43984291,67023.0,67022.0,0.001844]
[1729601957998,0.43984291,67023.0,67022.0,0.000844]
[1729601958257,5.01443291,67023.0,67022.0,0.000844]
[1729601958973,5.01543291,67023.0,67022.0,0.000844]
[1729601959209,5.01943291,67023.0,67022.0,0.000844]
[1729601959687,5.02443291,67023.0,67022.0,0.000844]
[1729601959913,5.01943291,67023.0,67022.0,0.000844]
[1729601960183,5.28039206,67023.0,67022.0,0.000844]
[1729601960452,5.28039206,67023.0,67021.0,0.00033605]
[1729601960453,0.264204,67022.0,67021.0,0.00033605]
[1729601960688,4.85359671,67022.0,67021.0,0.00033605]
[1729601961864,4.839794,67022.0,67021.0,0.00033605]
[1729601962102,4.86659496,67022.0,67021.0,0.00033605]
[1729601962331,4.86659478,67022.0,67021.0,0.00033605]
[1729601963512,4.87959478,67022.0,67021.0,0.00033605]
[1729601963978,5.02855393,67022.0,67021.0,0.00033605]
[1729601964725,5.07262764,67022.0,67021.0,0.00033605]
[1729601965196,5.02855393,67022.0,67021.0,0.00033605]
[1729601965639,5.0726264,67022.0,67021.0,0.00033605]
[1729601966074,5.02855269,67022.0,67021.0,0.00033605]
[1729601966784,5.09466326,67022.0,67021.0,0.00033605]
[1729601967697,5.19140757,67022.0,67021.0,0.00033605]
[1729601968367,5.59971485,67022.0,67021.0,0.00033605]
[1729601968580,5.62175171,67022.0,67021.0,0.00033605]
[1729601968800,5.45055101,67022.0,67021.0,0.00033605]
[1729601968951,5.34036672,67022.0,67021.0,0.00033605]
[1729601969178,5.34241871,67022.0,67021.0,0.00033605]
[1729601969419,5.45274348,67022.0,67021.0,0.00033605]
[1729601969624,5.34241871,67022.0,67021.0,0.00033605]
[1729601969818,5.51361941,67022.0,67021.0,0.00033605]
[1729601970415,5.34241871,67022.0,67021.0,0.00033605]
[1729601970862,5.51361941,67022.0,67021.0,0.00033605]